bitfinex/quotes_SOLUSD_20240811
["timestamp","ask_amount","ask_price","bid_price","bid_amount"]
[1723336792748,9.62,154.97,154.9,9.62]
[1723336794258,9.62,154.97,154.9,10.91082068]
[1723336794426,9.62,154.99,154.91,0.25098]
[1723336794631,9.62,154.99,154.92,9.62]
[1723336794858,9.62,154.99,154.93,1.29071925]
[1723336795661,24.6336,155.01,154.93,1.29071925]
[1723336795834,19.21,155.03,154.93,37.83111925]
[1723336796035,19.21,155.03,154.94,0.25098]
[1723336796245,19.21,155.03,154.94,45.25098]
[1723336797052,20.0,155.02,154.94,45.25098]
[1723336798938,19.21,155.01,154.93,36.5404]
[1723336800262,19.21,155.01,154.94,45.12549]
[1723336800575,20.0,155.02,154.94,45.25098]
[1723336800950,15.2551,155.05,154.95,1.4159117]
[1723336801161,19.21,155.03,154.93,36.5404]
[1723336801365,19.21,155.01,154.93,36.5404]
[1723336801568,19.21,155.03,154.93,36.5404]
[1723336801750,19.21,155.03,154.93,37.83090528]
[1723336802065,19.21,155.05,154.95,0.12549]
[1723336802266,19.21,155.07,154.97,0.12549]
[1723336802441,11.68842619,155.08,154.99,15.9627]
[1723336802854,19.21,155.07,154.99,15.9627]
[1723336803054,19.21,155.05,154.99,15.9627]
[1723336803847,19.21,155.07,154.99,15.9627]
[1723336804259,20.0,155.06,154.99,15.9627]
[1723336804466,19.21,155.05,154.99,15.9627]
[1723336805457,20.0,155.06,154.99,15.9627]
[1723336805659,11.68842619,155.08,154.99,17.25275152]
[1723336805859,11.68842619,155.08,155.0,0.25098]
[1723336806060,35.3864,155.09,155.0,1.54095574]
[1723336806379,19.21,155.09,155.0,1.54095574]
[1723336806875,19.21,155.09,155.01,0.12549]
[1723336807074,20.0,155.08,155.0,0.25098]
[1723336807386,19.21,155.09,155.0,0.12549]
[1723336807551,20.0,155.08,155.0,0.12549]
[1723336808258,19.21,155.09,155.0,20.25098]
[1723336808467,19.21,155.09,155.01,45.25098]
[1723336809656,19.21,155.11,155.01,45.25098]
[1723336809864,20.0,155.1,155.01,45.25098]
[1723336810070,19.21,155.11,155.01,64.46098]
[1723336810268,19.21,155.11,155.02,21.5407603]
[1723336811077,19.21,155.11,155.02,20.25098]
[1723336812153,35.3864,155.13,155.03,1.289788]
[1723336812460,20.0,155.12,155.04,22.5267]
[1723336812772,20.0,155.12,155.05,1.28964405]
[1723336813159,20.0,155.13,155.05,1.28964405]
[1723336813351,20.0,155.13,155.04,22.5267]
[1723336814170,19.21,155.12,155.04,22.5267]
[1723336814371,20.0,155.11,155.04,22.5267]
[1723336815210,39.21,155.12,155.04,22.5267]
[1723336816880,39.21,155.12,155.04,23.81629671]
[1723336817077,39.21,155.12,155.04,22.5267]
[1723336817689,39.21,155.12,155.04,23.81629687]
[1723336818579,39.21,155.12,155.04,22.5267]
[1723336819175,20.0,155.12,155.04,22.5267]
[1723336819486,20.0,155.13,155.04,22.5267]
[1723336819685,9.59,155.12,155.04,32.1167]
[1723336821181,9.59,155.12,155.04,22.5267]
[1723336822400,9.59,155.12,155.05,54.96647]
[1723336823770,20.0,155.13,155.05,54.96647]
[1723336823977,9.59,155.14,155.06,0.12549]
[1723336824194,9.59,155.12,155.05,54.96647]
[1723336824992,9.59,155.12,155.05,9.96647]
[1723336827088,9.59,155.14,155.05,0.37647]
[1723336827299,9.59,155.12,155.05,20.37647]
[1723336827799,9.59,155.12,155.05,0.12549]
[1723336828003,9.59,155.12,155.04,32.1167]
[1723336830178,0.12549,155.17,155.05,21.5406067]
[1723336830404,11.44161192,155.19,155.1,9.59]
[1723336830710,17.2163562,155.23,155.13,0.12549]
[1723336831008,9.59,155.22,155.14,15.609]
[1723336831887,0.8288562,155.23,155.16,9.59]
[1723336832207,9.59,155.21,155.14,6.019]
[1723336833290,9.59,155.21,155.15,45.12549]
[1723336833500,9.59,155.21,155.15,46.41418419]
[1723336833688,0.3288562,155.23,155.15,46.41418419]
[1723336834209,0.3288562,155.23,155.15,45.12549]
[1723336834411,20.3288562,155.23,155.15,64.28549]
[1723336834582,0.3288562,155.23,155.15,46.41418346]
[1723336834784,20.3288562,155.23,155.15,45.12549]
[1723336835279,20.3288562,155.23,155.14,6.019]
[1723336835481,19.16,155.22,155.14,6.019]
[1723336836407,19.16,155.2,155.14,6.019]
[1723336836795,19.16,155.22,155.14,6.019]
[1723336837909,0.3288562,155.23,155.17,16.4862]
[1723336838488,0.3288562,155.23,155.18,1.28857225]
[1723336838698,0.3288562,155.23,155.17,16.4862]
[1723336839506,0.3288562,155.23,155.18,1.2885957]
[1723336840521,0.3288562,155.23,155.17,16.4862]
[1723336841013,0.3288562,155.23,155.17,17.77473845]
[1723336841194,0.3288562,155.23,155.17,16.4862]
[1723336841405,0.3288562,155.23,155.17,17.77473939]
[1723336841595,0.3288562,155.23,155.17,16.4862]
[1723336842212,0.3288562,155.23,155.18,1.28871915]
[1723336843091,0.3288562,155.23,155.17,16.4862]
[1723336843296,0.3288562,155.23,155.18,1.28865996]
[1723336844423,0.3288562,155.23,155.17,16.4862]
[1723336844788,0.3288562,155.23,155.17,17.77474718]
[1723336845192,0.3288562,155.23,155.17,16.4862]
[1723336846718,19.16,155.22,155.17,16.4862]
[1723336847305,19.16,155.22,155.14,6.019]
[1723336847506,19.16,155.2,155.14,6.019]
[1723336847698,19.16,155.22,155.14,6.019]
[1723336848016,19.16,155.22,155.15,1.28887726]
[1723336850595,19.16,155.22,155.14,6.019]
[1723336850811,19.16,155.22,155.15,1.28887891]
[1723336853326,19.16,155.22,155.14,6.019]
[1723336853927,19.16,155.22,155.15,1.28887978]
[1723336854925,19.16,155.22,155.14,6.019]
[1723336855301,45.0,155.21,155.14,6.019]
[1723336855829,9.58,155.19,155.14,6.019]
[1723336856401,9.58,155.19,155.14,7.30798831]
[1723336856621,9.58,155.19,155.14,6.019]
[1723336857125,9.58,155.19,155.14,7.30798865]
[1723336857326,9.58,155.19,155.14,6.019]
[1723336857627,9.58,155.2,155.14,6.019]
[1723336858228,9.58,155.2,155.14,7.3079473]
[1723336858427,9.58,155.2,155.14,6.019]
[1723336858835,9.58,155.2,155.14,7.30794783]
[1723336859231,9.58,155.2,155.15,1.28893786]
[1723336859553,9.58,155.2,155.15,1.28894528]
[1723336859734,9.58,155.2,155.14,6.019]
[1723336859735,9.58,155.2,155.14,7.30794506]
[1723336860049,9.58,155.2,155.15,1.28894568]
[1723336860349,9.58,155.2,155.15,1.28894557]
[1723336860535,9.58,155.21,155.15,1.28894557]
[1723336860737,9.58,155.21,155.14,15.599]
[1723336860934,9.58,155.21,155.15,1.28881699]
[1723336861948,9.58,155.21,155.14,15.599]
[1723336862157,9.58,155.22,155.15,1.79069011]
[1723336862853,20.3288562,155.23,155.16,9.58]
[1723336863058,20.3288562,155.23,155.17,10.86860798]
[1723336863224,20.3288562,155.23,155.18,1.28859104]
[1723336863548,29.9088562,155.23,155.16,25.8111]
[1723336863743,9.58,155.22,155.17,1.28871246]
[1723336863946,29.9088562,155.23,155.17,1.28871246]
[1723336864249,29.9088562,155.23,155.18,1.28860731]
[1723336864637,9.9088562,155.23,155.18,1.28860731]
[1723336864839,0.3288562,155.23,155.18,1.28860731]
[1723336865049,0.3288562,155.23,155.16,25.8111]
[1723336865233,9.9088562,155.23,155.16,25.8111]
[1723336866341,9.9088562,155.23,155.16,16.2311]
[1723336866544,9.58,155.21,155.16,16.2311]
[1723336871039,9.58,155.19,155.16,16.2311]
[1723336871662,9.58,155.19,155.14,6.019]
[1723336871852,9.58,155.15,155.12,16.2311]
[1723336872052,9.58,155.16,155.12,16.2311]
[1723336872565,9.58,155.15,155.1,6.0275]
[1723336873850,9.58,155.16,155.1,6.0275]
[1723336875976,9.58,155.17,155.1,15.6075]
[1723336876472,9.58,155.17,155.1,6.0275]
[1723336876669,9.58,155.16,155.1,6.0275]
[1723336877275,9.58,155.15,155.1,6.0275]
[1723336878184,9.58,155.15,155.08,16.2311]
[1723336878778,26.4441,155.18,155.08,27.10052782]
[1723336878779,9.58,155.16,155.08,27.10052782]
[1723336878956,29.58,155.18,155.1,9.58]
[1723336879481,29.58,155.18,155.09,0.12549]
[1723336879654,29.58,155.18,155.09,66.7911606]
[1723336879853,29.58,155.18,155.1,9.58]
[1723336880272,9.58,155.16,155.09,20.0]
[1723336880465,9.58,155.16,155.09,21.28936602]
[1723336880678,9.58,155.16,155.09,20.0]
[1723336881365,9.58,155.16,155.09,29.58]
[1723336881680,9.58,155.17,155.09,29.58]
[1723336881847,9.58,155.16,155.08,25.8111]
[1723336882054,9.58,155.15,155.08,25.8111]
[1723336883370,9.58,155.15,155.08,16.2311]
[1723336883581,9.58,155.14,155.08,16.2311]
[1723336883781,9.58,155.15,155.08,25.8111]
[1723336883988,0.12549,155.19,155.08,25.8111]
[1723336883989,9.58,155.16,155.08,25.8111]
[1723336884962,9.58,155.15,155.08,25.8111]
[1723336885483,9.58,155.17,155.09,9.58]
[1723336885675,9.58,155.18,155.1,10.86919263]
[1723336885871,20.0,155.17,155.1,10.86919263]
[1723336886078,20.0,155.17,155.11,1.28919421]
[1723336886664,20.0,155.17,155.1,9.58]
[1723336887386,29.58,155.17,155.09,9.58]
[1723336888884,9.58,155.15,155.08,25.8111]
[1723336889072,9.58,155.15,155.08,16.2311]
[1723336889590,9.58,155.14,155.08,16.2311]
[1723336891488,26.4445,155.17,155.08,16.2311]
[1723336891489,9.58,155.15,155.08,25.8111]
[1723336891677,29.58,155.17,155.09,9.58]
[1723336891878,9.58,155.17,155.09,9.58]
[1723336899799,45.0,155.16,155.09,9.58]
[1723336899995,54.58,155.16,155.09,9.58]
[1723336903613,0.12549,155.21,155.09,9.58]
[1723336903811,25.09228012,155.23,155.13,15.4101]
[1723336903986,9.58,155.2,155.13,24.9901]
[1723336904484,9.58,155.2,155.13,15.4101]
[1723336905203,20.0,155.19,155.13,15.4101]
[1723336905606,16.0242,155.18,155.13,15.4101]
[1723336905890,9.58,155.16,155.13,15.4101]
[1723336906717,9.58,155.16,155.09,15.4101]
[1723336909217,54.58,155.17,155.09,24.9901]
[1723336911110,54.58,155.17,155.09,15.4101]
[1723336911111,9.58,155.16,155.09,15.4101]
[1723336911310,9.58,155.15,155.09,15.4101]
[1723336911514,9.58,155.16,155.09,24.9901]
[1723336912321,9.58,155.16,155.09,15.4101]
[1723336915725,9.58,155.14,155.09,15.4101]
[1723336915900,9.58,155.13,155.09,15.4101]
[1723336925238,9.58,155.1,155.05,15.4624]
[1723336925441,9.58,155.07,155.01,15.4624]
[1723336927514,9.58,155.04,155.01,15.4624]
[1723336927933,6.4487,155.07,155.01,15.4624]
[1723336928128,9.58,155.06,155.01,15.4624]
[1723336928330,6.4474,155.1,155.01,15.4624]
[1723336928331,9.58,155.07,155.01,15.4624]
[1723336929911,9.58,155.06,155.01,15.4624]
[1723336930114,9.58,155.04,155.01,15.4624]
[1723336931843,9.58,155.03,154.96,21.5088]
[1723336932026,9.58,155.03,154.96,31.0888]
[1723336932217,9.58,155.05,154.98,9.58]
[1723336933658,9.58,155.04,154.96,31.0888]
[1723336933824,9.58,155.03,154.96,31.0888]
[1723336934443,9.58,155.03,154.96,21.5088]
[1723336934645,9.58,155.03,154.96,31.0888]
[1723336934949,9.58,155.03,154.96,32.37924685]
[1723336935255,9.58,155.03,154.96,31.0888]
[1723336935547,9.58,155.03,154.96,32.37924725]
[1723336936253,9.58,155.04,154.96,32.37924725]
[1723336936438,9.58,155.04,154.97,9.58]
[1723336937438,9.58,155.04,154.96,21.5088]
[1723336937631,9.58,155.04,154.96,32.37924716]
[1723336938033,9.58,155.04,154.96,21.5088]
[1723336938335,9.58,155.04,154.96,31.0888]
[1723336938541,9.58,155.04,154.96,32.37924669]
[1723336938846,9.58,155.04,154.96,21.5088]
[1723336938847,9.58,155.02,154.96,21.5088]
[1723336940054,2.57832175,155.08,154.97,10.87053985]
[1723336940228,9.58,155.06,154.99,9.58]
[1723336940430,20.0,155.05,154.99,9.58]
[1723336941246,9.58,155.06,154.99,9.58]
[1723336941546,9.58,155.04,154.97,9.58]
[1723336942635,20.0,155.05,154.97,9.58]
[1723336943252,9.58,155.09,155.01,9.58]
[1723336943432,9.58,155.09,155.01,10.86999391]
[1723336943831,9.58,155.09,155.01,17.42709391]
[1723336944532,16.167,155.11,155.03,9.58]
[1723336944533,9.58,155.11,155.03,9.58]
[1723336944735,9.58,155.11,155.05,15.9646]
[1723336945753,20.0,155.1,155.05,15.9646]
[1723336945926,9.58,155.09,155.05,15.9646]
[1723336946326,16.0278,155.09,155.05,15.9646]
[1723336946546,9.58,155.07,155.01,22.5217]
[1723336946775,9.58,155.06,155.01,22.5217]
[1723336947768,9.58,155.05,155.01,22.5217]
[1723336950849,9.58,155.04,155.01,15.9646]
[1723336951754,9.58,155.06,155.01,15.9646]
[1723336952057,20.0,155.05,155.01,15.9646]
[1723336952453,29.58,155.05,155.01,15.9646]
[1723336953576,9.58,155.05,155.01,15.9646]
[1723336954789,9.58,155.02,154.97,23.169]
[1723336955077,9.58,155.01,154.97,23.169]
[1723336955376,9.58,155.01,154.97,16.6119]
[1723336957285,9.58,155.03,154.97,16.6119]
[1723336957580,54.58,155.04,154.97,16.6119]
[1723336957758,20.0,155.03,154.98,1.2903757]
[1723336958159,20.0,155.04,154.98,1.2903757]
[1723336958678,20.0,155.04,154.97,26.1919]
[1723336959375,20.0,155.04,154.98,1.29028552]
[1723336959579,9.58,155.05,154.98,1.29028552]
[1723336959760,9.58,155.05,154.99,1.2902974]
[1723336960781,9.58,155.09,155.01,9.58]
[1723336961089,9.58,155.1,155.03,15.9492]
[1723336962385,9.58,155.1,155.04,6.3221]
[1723336966283,9.58,155.13,155.05,1.2898019]
[1723336966467,9.58,155.13,155.06,9.58]
[1723336966652,9.58,155.13,155.07,1.28943477]
[1723336966862,9.58,155.13,155.08,1.28943422]
[1723336967091,24.68502167,155.15,155.08,1.28943422]
[1723336967257,9.58,155.17,155.1,15.8196]
[1723336967462,9.58,155.17,155.11,1.28922175]
[1723336968386,9.58,155.16,155.1,6.2396]
[1723336970166,9.58,155.14,155.09,15.2144]
[1723336970459,9.58,155.12,155.09,15.2144]
[1723336971269,9.58,155.11,155.09,15.2144]
[1723336971995,9.58,155.12,155.09,15.2144]
[1723336972171,9.58,155.13,155.09,15.2144]
[1723336973373,9.58,155.12,155.06,6.2396]
[1723336973567,54.58,155.12,155.06,6.2396]
[1723336974261,9.58,155.13,155.06,7.52934091]
[1723336974896,9.58,155.13,155.06,6.2396]
[1723336975067,9.58,155.12,155.06,6.2396]
[1723336975267,9.58,155.09,155.05,15.8217]
[1723336975684,9.58,155.11,155.05,15.8217]
[1723336975887,9.58,155.12,155.06,1.28965642]
[1723336976777,9.58,155.12,155.05,25.4017]
[1723336976984,9.58,155.13,155.05,25.4017]
[1723336977191,20.0,155.12,155.06,9.58]
[1723336977774,9.58,155.15,155.07,17.21626902]
[1723336977973,9.58,155.15,155.08,9.58]
[1723336978197,6.4446,155.17,155.08,9.58]
[1723336978405,9.58,155.15,155.08,9.58]
[1723336978601,9.58,155.14,155.07,15.9267]
[1723336979908,9.58,155.16,155.09,15.6999]
[1723336980203,9.58,155.16,155.09,25.2799]
[1723336981003,21.9067,155.21,155.1,9.58]
[1723336981004,9.58,155.17,155.1,9.58]
[1723336981504,9.58,155.17,155.1,10.86917268]
[1723336981692,9.58,155.18,155.1,9.58]
[1723336981893,20.0,155.17,155.1,9.58]
[1723336982087,29.58,155.17,155.09,25.40539]
[1723336983170,29.58,155.17,155.1,9.58]
[1723336983476,20.0,155.17,155.1,9.58]
[1723336983692,9.58,155.18,155.1,9.58]
[1723336983900,15.8528107,155.22,155.13,9.58]
[1723336984084,9.58,155.2,155.13,9.58]
[1723336984295,9.58,155.2,155.12,16.1282]
[1723336984497,9.58,155.18,155.12,6.5482]
[1723336992930,9.58,155.17,155.12,6.5482]
[1723336993425,9.58,155.16,155.12,6.5482]
[1723336993639,9.58,155.18,155.12,6.5482]
[1723336995638,9.58,155.17,155.12,6.5482]
[1723336995833,9.58,155.15,155.12,6.5482]
[1723336997430,6.56919,155.19,155.12,6.5482]
[1723336997638,0.12549,155.21,155.12,16.1282]
[1723336997836,21.79859638,155.24,155.13,9.58]
[1723336998137,9.58,155.21,155.13,9.58]
[1723336998348,29.58,155.2,155.12,16.1282]
[1723336998707,9.58,155.19,155.12,16.1282]
[1723336999223,9.58,155.18,155.12,6.5482]
[1723336999536,9.58,155.19,155.12,16.1282]
[1723336999717,9.58,155.17,155.12,6.5482]
[1723336999918,9.58,155.16,155.12,6.5482]
[1723337000620,9.58,155.17,155.12,6.5482]
[1723337000820,9.58,155.19,155.12,6.5482]
[1723337001136,20.0,155.18,155.12,6.5482]
[1723337001714,29.58,155.18,155.12,6.5482]
[1723337003720,9.58,155.18,155.12,6.5482]
[1723337005348,9.58,155.17,155.12,6.5482]
[1723337005520,9.58,155.15,155.09,15.6999]
[1723337005719,9.58,155.14,155.09,15.6999]
[1723337007446,9.58,155.13,155.09,15.6999]
[1723337008939,9.58,155.12,155.09,15.6999]
[1723337009151,9.58,155.11,155.05,15.8986]
[1723337010161,9.58,155.13,155.05,25.4786]
[1723337010366,20.0,155.12,155.05,25.4786]
[1723337010565,20.0,155.12,155.06,10.869638]
[1723337011155,20.0,155.12,155.06,9.58]
[1723337011570,9.58,155.14,155.06,9.58]
[1723337011762,9.58,155.15,155.08,9.58]
[1723337012064,9.58,155.18,155.1,32.1284]
[1723337012269,9.58,155.18,155.11,9.58]
[1723337012443,9.58,155.18,155.11,10.86912888]
[1723337013056,2.56845423,155.32,155.2,5.87989]
[1723337013261,7.2642562,155.39,155.3,9.58]
[1723337013448,0.8288562,155.39,155.28,9.58]
[1723337013646,19.13,155.38,155.27,19.13]
[1723337014540,6.4367,155.36,155.27,19.13]
[1723337014744,20.0,155.35,155.27,19.13]
[1723337015969,6.4367,155.36,155.27,19.13]
[1723337016265,6.4371,155.35,155.22,0.12549]
[1723337016447,6.4371,155.35,155.25,19.13]
[1723337017264,65.0,155.34,155.25,19.13]
[1723337020350,20.0,155.34,155.27,19.13]
[1723337020553,20.0,155.35,155.27,19.13]
[1723337023463,20.0,155.35,155.26,0.37647]
[1723337024148,0.8288562,155.39,155.29,19.13]
[1723337024354,19.9588562,155.39,155.29,19.13]
[1723337024857,6.4363,155.37,155.29,19.13]
[1723337025072,25.5663,155.37,155.29,19.13]
[1723337025363,0.8288562,155.39,155.3,1.28762226]
[1723337025364,19.13,155.38,155.3,1.28762226]
[1723337025678,19.13,155.38,155.29,25.4396]
[1723337026067,25.5658,155.38,155.29,25.4396]
[1723337026661,20.0,155.37,155.29,25.4396]
[1723337026858,20.0,155.37,155.3,0.25098]
[1723337029179,20.0,155.37,155.3,0.12549]
[1723337029379,20.0,155.37,155.29,25.56509]
[1723337029582,19.13,155.36,155.29,6.3096]
[1723337030265,19.13,155.36,155.25,19.13]
[1723337030266,25.5684,155.32,155.25,6.3096]
[1723337030664,19.13,155.32,155.25,6.3096]
[1723337031474,65.25098,155.35,155.21,6.3096]
[1723337031475,0.12549,155.34,155.21,6.3096]
[1723337031767,19.13,155.27,155.2,15.0531]
[1723337032086,19.13,155.25,155.17,6.3096]
[1723337034484,25.5714,155.25,155.17,6.3096]
[1723337034689,20.0,155.24,155.17,6.3096]
[1723337035770,19.13,155.25,155.17,6.3096]
[1723337036493,19.13,155.25,155.17,7.59807796]
[1723337036888,19.13,155.25,155.18,1.28847909]
[1723337038210,19.13,155.25,155.18,0.12549]
[1723337038414,19.13,155.25,155.18,0.50196]
[1723337039288,19.13,155.25,155.18,0.25098]
[1723337039509,19.13,155.25,155.17,6.3096]
[1723337039716,20.0,155.24,155.17,6.3096]
[1723337041108,19.13,155.23,155.15,15.0531]
[1723337041497,19.13,155.21,155.15,15.0531]
[1723337042527,19.13,155.21,155.1,34.6337]
[1723337042699,19.13,155.19,155.1,34.6337]
[1723337044526,19.13,155.17,155.1,15.5037]
[1723337045015,19.13,155.17,155.09,6.2531]
[1723337045317,19.13,155.15,155.06,15.5037]
[1723337045530,19.13,155.13,155.05,6.2531]
[1723337045698,19.13,155.09,155.0,0.33693692]
[1723337046016,19.13,155.07,154.99,6.2531]
[1723337047011,20.0,155.12,155.01,19.13]
[1723337047207,19.13,155.13,155.03,19.13]
[1723337047412,19.13,155.15,155.05,19.13]
[1723337047622,19.13,155.15,155.06,1.28944134]
[1723337047909,45.0,155.14,155.06,1.28944134]
[1723337048109,19.13,155.11,155.01,19.13]
[1723337048322,19.13,155.11,155.02,21.28974071]
[1723337049640,19.13,155.11,155.03,0.25098]
[1723337049840,19.13,155.11,155.04,1.28966594]
[1723337050019,19.13,155.11,155.02,20.25098]
[1723337051118,19.13,155.11,155.03,1.2897372]
[1723337052922,19.13,155.11,155.02,20.25098]
[1723337053120,19.13,155.09,155.02,0.12549]
[1723337053344,19.13,155.09,155.02,1.28982355]
[1723337053551,19.13,155.09,155.02,1.41531355]
[1723337054331,19.13,155.07,154.99,6.2531]
[1723337054946,19.13,155.09,155.0,1.28997951]
[1723337055153,20.0,155.08,155.0,1.28997951]
[1723337058043,20.0,155.08,154.99,25.75957]
[1723337058243,19.13,155.07,154.99,6.62957]
[1723337058547,25.5788,155.07,154.99,6.50408]
[1723337058735,25.5788,155.07,154.99,6.2531]
[1723337059545,19.13,155.07,154.99,6.2531]
[1723337059837,20.0,155.08,154.99,26.67315576]
[1723337060241,20.0,155.08,155.0,0.12549]
[1723337060552,19.13,155.11,155.02,0.12549]
[1723337060727,19.13,155.11,155.02,46.79169226]
[1723337061756,20.0,155.1,155.02,46.79169226]
[1723337063341,6.5035,155.14,155.02,46.79169226]
[1723337063342,19.13,155.13,155.04,0.12549]
[1723337063549,19.13,155.13,155.04,46.79148948]
[1723337064043,18.63,155.13,155.04,46.79148948]
[1723337064553,6.5035,155.14,155.05,19.13]
[1723337064753,19.13,155.15,155.06,1.66588711]
[1723337065644,19.13,155.15,155.07,0.12549]
[1723337065853,19.13,155.17,155.09,0.12549]
[1723337066153,25.0737,155.19,155.09,20.92113442]
[1723337067157,20.0,155.18,155.09,20.92113442]
[1723337067376,20.0,155.18,155.11,0.12549]
[1723337067661,20.0,155.18,155.11,1.66545487]
[1723337067876,26.4442,155.18,155.11,0.37647]
[1723337068360,6.4446,155.17,155.1,0.25098]
[1723337068949,6.4449,155.16,155.09,0.12549]
[1723337069145,6.4449,155.16,155.08,6.2919]
[1723337070167,25.5745,155.17,155.08,6.2919]
[1723337070456,25.5745,155.17,155.09,0.12549]
[1723337070673,25.5745,155.17,155.09,0.25098]
[1723337071162,19.13,155.17,155.09,0.12549]
[1723337071346,19.13,155.15,155.06,16.2802]
[1723337071559,0.12549,155.16,155.06,16.2802]
[1723337071560,25.5762,155.13,155.06,16.2802]
[1723337072081,19.13,155.13,155.06,16.2802]
[1723337074363,25.5762,155.13,155.06,16.2802]
[1723337074539,45.0,155.14,155.04,6.2919]
[1723337074540,25.5771,155.11,155.04,6.2919]
[1723337074867,19.13,155.11,155.04,6.2919]
[1723337075050,25.577,155.11,155.04,6.2919]
[1723337075250,6.4475,155.1,155.04,6.2919]
[1723337075465,19.13,155.11,155.04,6.2919]
[1723337076052,25.5771,155.11,155.04,6.2919]
[1723337076266,19.13,155.09,155.01,15.5697]
[1723337077365,25.5779,155.09,155.01,15.5697]
[1723337077756,25.5779,155.09,155.0,6.45289]
[1723337078093,19.13,155.07,154.97,44.80801385]
[1723337078243,19.13,155.05,154.97,25.67801385]
[1723337079463,19.13,155.05,154.98,0.25098]
[1723337080463,19.13,155.07,154.99,0.12549]
[1723337080664,19.13,155.07,154.98,45.25098]
[1723337081868,19.13,155.05,154.97,25.80350385]
[1723337082070,19.13,155.05,154.97,15.69519]
[1723337082266,19.13,155.05,154.98,46.54115357]
[1723337082471,19.13,155.05,154.98,45.25098]
[1723337083179,19.13,155.07,154.98,45.25098]
[1723337085184,25.5787,155.07,154.98,45.25098]
[1723337085357,19.13,155.05,154.98,45.25098]
[1723337086959,19.13,155.07,154.99,1.41555164]
[1723337087157,19.13,155.09,155.0,0.25098]
[1723337087358,20.0,155.08,155.0,1.54090906]
[1723337088482,20.0,155.08,155.01,0.25098]
[1723337089265,25.5779,155.09,155.01,0.25098]
[1723337089579,19.13,155.09,155.01,0.25098]
[1723337089779,20.0,155.08,155.01,0.25098]
[1723337090678,19.13,155.09,155.01,0.25098]
[1723337091196,25.5778,155.09,155.01,0.25098]
[1723337092179,19.13,155.09,155.01,0.25098]
[1723337092374,19.13,155.09,155.02,0.25098]
[1723337092565,19.13,155.09,155.03,0.12549]
[1723337094968,6.4475,155.1,155.03,0.12549]
[1723337095178,20.0,155.09,155.03,0.12549]
[1723337097778,25.5775,155.1,155.03,0.12549]
[1723337099578,19.13,155.1,155.03,0.12549]
[1723337099759,19.13,155.1,155.03,1.41520456]
[1723337100761,25.5776,155.1,155.03,0.12549]
[1723337101386,25.5776,155.1,155.02,45.25098]
[1723337101387,19.13,155.1,155.02,0.12549]
[1723337101583,6.4483,155.08,155.01,0.12549]
[1723337101791,9.6,155.07,155.0,29.6]
[1723337102086,9.6,155.05,154.97,27.753275]
[1723337102383,9.6,155.04,154.97,18.153275]